bitfinex/quotes_SOLUSD_20251224
["timestamp","ask_amount","ask_price","bid_price","bid_amount"]
[1766612465237,23.62445664,123.09,123.02,0.7]
[1766612465399,0.66,123.08,123.05,0.7]
[1766612468102,0.69,123.07,123.04,10.62392669]
[1766612469432,0.69,123.07,123.04,8.82743626]
[1766612470544,0.69,123.07,123.04,10.62392669]
[1766612471220,0.69,123.05,123.01,1.79649043]
[1766612471536,0.69,123.05,123.01,0.7]
[1766612472441,0.69,123.05,123.01,8.82937055]
[1766612472645,0.69,123.05,123.02,0.7]
[1766612472842,8.81682386,123.05,123.02,0.7]
[1766612473016,0.69,123.04,123.01,8.82937055]
[1766612473431,0.69,123.04,123.01,8.12937055]
[1766612473646,0.69,123.04,123.02,0.7]
[1766612480038,0.69,123.04,123.01,8.12937055]
[1766612480336,0.69,123.04,123.01,0.7]
[1766612483618,0.69,123.03,123.0,19.2674731]
[1766612483830,0.69,123.03,123.01,0.7]
[1766612491525,0.69,123.04,123.01,0.7]
[1766612493147,0.69,123.04,123.0,19.2674555]
[1766612493344,2.48649043,123.04,123.0,8.82978254]
[1766612493540,0.69,123.03,123.0,8.82978254]
[1766612493747,0.69,123.03,123.0,10.62627297]
[1766612494543,0.69,123.03,123.0,8.82978254]
[1766612495254,0.69,123.03,123.0,0.7]
[1766612496335,0.69,123.03,123.0,8.82995697]
[1766612500159,0.69,123.03,123.0,8.12995697]
[1766612500361,0.69,123.03,123.01,0.7]
[1766612505463,0.69,123.03,122.99,10.62723276]
[1766612506062,0.69,123.03,123.0,0.7]
[1766612509860,9.92422307,123.04,123.0,0.7]
[1766612509861,8.12683988,123.05,123.0,9.92603834]
[1766612510065,10.60333031,123.05,123.01,0.7]
[1766612510370,0.68,123.04,123.01,0.7]
[1766612511463,0.68,123.04,123.02,0.7]
[1766612514468,0.68,123.05,123.02,2.49649043]
[1766612514645,0.68,123.05,123.02,0.7]
[1766612515562,0.68,123.05,123.01,10.62590054]
[1766612516568,8.12693743,123.05,123.01,10.62590054]
[1766612516748,0.68,123.04,123.01,10.62590054]
[1766612517556,0.68,123.04,123.01,9.92590054]
[1766612517756,0.68,123.04,123.02,0.7]
[1766612518256,0.68,123.04,123.01,0.7]
[1766612524452,0.68,123.04,123.01,10.62589336]
[1766612525262,0.68,123.04,123.02,0.7]
[1766612527274,0.66,123.06,123.02,0.7]
[1766612529080,0.66,123.05,123.02,0.7]
[1766612533782,0.66,123.05,123.02,11.63679827]
[1766612537393,0.66,123.05,123.02,8.82875008]
[1766612537689,0.66,123.05,123.02,3.50804819]
[1766612540974,0.66,123.05,123.02,0.7]
[1766612541580,0.66,123.05,123.02,8.82868119]
[1766612558901,0.72,123.06,123.03,0.68]
[1766612581529,0.72,123.07,123.04,0.68]
[1766612582027,0.72,123.08,123.05,0.68]
[1766612587234,0.72,123.08,123.05,3.48804819]
[1766612587935,0.72,123.08,123.05,0.68]
[1766612589413,0.72,123.08,123.05,8.80674446]
[1766612589933,0.72,123.08,123.06,0.69]
[1766612607446,0.72,123.07,123.04,8.12740491]
[1766612607656,0.72,123.07,123.05,0.69]
[1766612609151,0.72,123.09,123.06,0.69]
[1766612610639,8.12417289,123.09,123.05,8.12673365]
[1766612610844,0.72,123.08,123.05,0.69]
[1766612612156,0.72,123.09,123.06,0.69]
[1766612616334,8.84420227,123.09,123.06,0.69]
[1766612616533,0.72,123.08,123.06,0.69]
[1766612624566,0.69,123.07,123.04,0.66]
[1766612646170,0.69,123.08,123.04,8.12718972]
[1766612646375,0.69,123.08,123.05,0.66]
[1766612650104,0.69,123.08,123.05,8.78677469]
[1766612652116,0.7,123.07,123.03,0.72]
[1766612652408,0.7,123.07,123.04,0.72]
[1766612654826,2.80691747,123.05,123.01,34.83485915]
[1766612654993,0.7,123.04,123.01,8.84931546]
[1766612655198,0.7,123.04,123.02,0.72]
[1766612655421,0.7,123.05,123.02,0.72]
[1766612657206,11.13767296,123.06,123.03,0.72]
[1766612659320,13.94459043,123.06,123.03,0.72]
[1766612661110,8.12869201,123.05,123.03,0.72]
[1766612661307,13.94459043,123.06,123.03,0.72]
[1766612661733,8.12869201,123.05,123.03,0.72]
[1766612663529,8.82869201,123.05,123.03,0.72]
[1766612667442,8.82869201,123.05,123.02,0.72]
[1766612675131,0.7,123.04,123.0,78.75844509]
[1766612675331,0.7,123.04,123.0,63.22]
[1766612675537,0.7,123.04,123.01,8.84938429]
[1766612676046,0.7,123.04,123.01,8.12938429]
[1766612676251,0.7,123.04,123.02,0.72]
[1766612680440,8.82938429,123.04,123.02,0.72]
[1766612681461,0.7,123.04,123.02,0.72]
[1766612692152,8.82939718,123.04,123.02,0.72]
[1766612692355,0.7,123.04,123.02,0.72]
[1766612694044,8.82939718,123.04,123.02,0.72]
[1766612694251,0.71,123.03,123.0,0.7]
[1766612694553,0.71,123.03,123.01,0.7]
[1766612700095,8.83939718,123.04,123.01,0.7]
[1766612700295,16.25696593,123.04,123.0,8.12976441]
[1766612700607,0.71,123.04,123.01,0.7]
[1766612700769,11.14767296,123.06,123.02,0.7]
[1766612700976,24.40313987,123.04,123.03,0.7]
[1766612701174,11.14767296,123.06,123.03,0.7]
[1766612702082,0.71,123.05,123.03,0.7]
[1766612703175,19.77187049,123.07,123.03,0.7]
[1766612703490,0.71,123.06,123.03,0.7]
[1766612707294,0.71,123.06,123.04,0.7]
[1766612712210,0.71,123.06,123.03,8.82778514]
[1766612712922,9.92310611,123.06,123.01,102.10181338]
[1766612713120,0.69,123.05,123.01,9.92589175]
[1766612713287,0.69,123.05,123.02,0.7]
[1766612714125,0.69,123.05,123.02,2.49681055]
[1766612718031,0.69,123.05,123.03,1.79681055]
[1766612718917,0.69,123.05,123.02,2.49681055]
[1766612719122,0.69,123.05,123.02,1.79681055]
[1766612719966,0.69,123.04,123.01,1.79681055]
[1766612720173,0.69,123.04,123.0,1.79681055]
[1766612720354,0.69,123.04,122.99,73.12727559]
[1766612720355,0.69,123.03,122.99,73.12727559]
[1766612720539,0.69,123.03,123.0,1.79681055]
[1766612720735,0.69,123.03,123.0,2.49681055]
[1766612726075,0.69,123.03,123.01,1.79681055]
[1766612727084,0.69,123.02,123.0,2.49681055]
[1766612727379,0.69,123.04,123.01,1.79681055]
[1766612728186,0.69,123.04,123.01,10.62622706]
[1766612730358,0.69,123.04,123.01,2.49681055]
[1766612731071,0.69,123.04,123.01,0.7]
[1766612731266,0.69,123.03,122.99,10.62728864]
[1766612731464,0.69,123.03,122.99,2.49681055]
[1766612732892,8.81812764,123.03,123.0,0.7]
[1766612733384,0.69,123.02,123.0,0.7]
[1766612734264,0.69,123.03,123.0,2.49681055]
[1766612734884,1.79681055,123.02,122.97,10.43767296]
[1766612735080,0.69,123.01,122.98,0.7]
[1766612735294,0.69,123.01,122.98,2.49681055]
[1766612736169,0.69,123.01,122.98,0.7]
[1766612736375,0.69,123.01,122.98,10.62819505]
[1766612737195,0.69,123.01,122.99,0.7]
[1766612737697,0.69,123.01,122.99,2.49681055]
[1766612741595,8.12861219,123.03,122.99,2.49681055]
[1766612741801,0.65,123.02,122.99,2.49681055]
[1766612744421,0.65,123.02,122.99,0.7]
[1766612744583,1.79681055,123.01,122.97,10.43767296]
[1766612744783,8.12893269,123.02,122.96,75.42448351]
[1766612744784,0.65,122.99,122.96,0.69]
[1766612745104,0.65,122.99,122.94,8.13363724]
[1766612745289,33.40660565,123.02,122.94,0.69]
[1766612745290,1.79681055,122.98,122.94,0.69]
[1766612745482,0.65,122.96,122.93,0.69]
[1766612746099,1.79681055,122.97,122.91,0.89]
[1766612746100,0.65,122.94,122.91,0.89]
[1766612746302,0.65,122.93,122.91,0.2]
[1766612746500,8.13431792,122.94,122.91,0.2]
[1766612746802,0.65,122.94,122.91,2.68681055]
[1766612746992,0.65,122.94,122.91,10.82249358]
[1766612747191,10.58371856,122.96,122.93,0.69]
[1766612747403,11.08767296,122.96,122.93,2.48681055]
[1766612748394,11.08767296,122.96,122.93,0.69]
[1766612749603,0.65,122.97,122.94,0.69]
[1766612749778,0.65,122.97,122.94,2.48681055]
[1766612751498,30.46802425,122.99,122.95,0.69]
[1766612751707,0.65,122.98,122.95,0.69]
[1766612752181,0.65,122.98,122.94,2.48681055]
[1766612753718,0.65,122.97,122.94,2.48681055]
[1766612753920,0.65,122.97,122.95,0.69]
[1766612754590,0.65,122.97,122.94,2.48681055]
[1766612758715,0.65,122.97,122.94,0.69]
[1766612759405,0.65,122.96,122.93,2.48681055]
[1766612759598,0.65,122.96,122.93,9.93141698]
[1766612759802,0.65,122.96,122.94,0.69]
[1766612760212,9.92847462,122.98,122.94,0.69]
[1766612760413,0.65,122.97,122.94,2.48681055]
[1766612760595,0.65,122.97,122.95,0.69]
[1766612761407,0.65,122.97,122.94,2.48681055]
[1766612764521,0.65,122.97,122.94,10.62085909]
[1766612764716,0.65,122.98,122.95,2.48681055]
[1766612765226,8.1309586,122.99,122.94,8.13404854]
[1766612765227,0.65,122.99,122.97,2.48681055]
[1766612766115,0.65,122.99,122.96,2.48681055]
[1766612770723,0.65,122.99,122.97,2.50681055]
[1766612773331,0.65,122.99,122.98,1.79681055]
[1766612774008,0.65,122.99,122.98,2.80999756]
[1766612775233,0.65,122.99,122.97,0.71]
[1766612775431,0.65,122.99,122.97,3.51999756]
[1766612780942,0.65,122.99,122.97,0.71]
[1766612790549,0.65,122.99,122.97,3.51999756]
[1766612796251,0.65,122.99,122.97,0.71]
[1766612802982,8.13077934,122.99,122.96,2.80999756]
[1766612803154,8.13077934,122.99,122.96,0.7]
[1766612803355,8.80077934,122.99,122.96,0.7]
[1766612805782,0.67,122.99,122.96,3.50999756]
[1766612808274,0.67,122.99,122.96,0.7]
[1766612808974,0.67,122.99,122.96,3.50999756]
[1766612810193,0.67,122.99,122.96,10.94238977]
[1766612810395,0.67,123.01,122.98,2.80999756]
[1766612810708,0.67,123.01,122.99,0.7]
[1766612811112,0.67,123.01,122.98,3.50999756]
[1766612817010,0.67,123.01,122.98,0.7]
[1766612822942,0.67,123.01,122.98,3.50999756]
[1766612828845,8.12944616,123.01,122.98,0.7]
[1766612829025,0.67,123.0,122.98,0.7]
[1766612830422,0.67,122.99,122.96,3.50999756]
[1766612830627,0.67,122.99,122.97,0.7]
[1766612831429,0.67,122.99,122.96,2.80999756]
[1766612831430,0.67,122.99,122.96,11.64265973]
[1766612832540,0.67,122.99,122.97,0.7]
[1766612839157,0.67,122.99,122.96,10.63156289]
[1766612839336,0.67,122.99,122.97,0.7]
[1766612848341,15.51,123.01,122.98,2.49890072]
[1766612848950,0.67,123.01,122.98,2.49890072]
[1766612850264,0.67,123.0,122.98,2.49890072]
[1766612850465,0.67,123.0,122.98,0.7]
[1766612865873,8.80038349,123.0,122.96,1.79890072]
[1766612866057,8.13038349,123.0,122.97,0.72]
[1766612866261,8.80038349,123.0,122.97,0.72]
[1766612882088,0.67,123.0,122.97,0.72]
[1766612882390,0.67,123.01,122.98,0.72]
[1766612886387,8.79945058,123.01,122.98,0.72]
[1766612886994,8.12945058,123.01,122.98,0.72]
[1766612887292,0.67,123.0,122.98,0.72]
[1766612888275,1.79890072,123.02,122.98,0.72]
[1766612888589,0.68,123.03,123.0,0.68]
[1766612888792,0.68,123.03,122.99,1.79890072]
[1766612888793,0.68,123.03,122.99,2.47890072]
[1766612889571,0.68,123.02,122.99,0.68]
[1766612890495,8.8087779,123.02,122.99,0.68]
[1766612899310,22.96743823,123.04,123.01,0.68]
[1766612899607,0.68,123.03,123.01,0.68]
[1766612900303,0.68,123.03,123.0,3.4898602]
[1766612903309,0.68,123.03,123.0,0.68]
[1766612904507,0.68,123.02,122.98,2.8098602]
[1766612904691,0.68,123.02,122.98,0.68]
[1766612904900,0.68,123.01,122.98,0.68]
[1766612907210,0.68,123.01,122.99,0.68]
[1766612909227,8.80953377,123.01,122.98,0.68]
[1766612909514,0.68,123.0,122.98,0.68]
[1766612910312,0.68,123.0,122.97,11.62154063]
[1766612910723,0.68,123.0,122.97,10.94154063]
[1766612911010,0.68,123.01,122.98,0.68]
[1766612914710,8.80946945,123.01,122.98,0.68]
[1766612914912,0.68,123.0,122.97,3.4898602]
[1766612915314,0.68,123.0,122.97,0.68]
[1766612917316,8.1301088,123.0,122.95,8.13318809]
[1766612917528,0.71,122.99,122.96,3.4998602]
[1766612918315,0.71,122.99,122.96,0.69]
[1766612919435,0.71,122.99,122.95,10.94304829]
[1766612919436,0.71,122.99,122.95,11.63304829]
[1766612920348,0.71,122.99,122.96,0.69]
[1766612922030,3.5198602,122.99,122.96,0.69]
[1766612925921,0.71,122.98,122.96,0.69]
[1766612926436,0.71,122.98,122.94,22.07129769]
[1766612927329,0.71,122.98,122.95,0.69]
[1766612934539,0.71,122.98,122.95,3.4998602]
[1766612938143,0.71,122.98,122.95,11.63314466]
[1766612942643,0.71,122.98,122.95,10.94314466]
[1766612942845,0.71,122.98,122.96,3.4998602]
[1766612943746,0.71,122.98,122.96,0.69]
[1766612953948,0.71,122.98,122.94,0.72]
[1766612954152,0.67,122.99,122.96,0.72]
[1766612954336,0.67,122.99,122.96,11.66245322]
[1766612955752,0.67,122.99,122.97,2.8098602]
[1766612956052,0.67,123.0,122.98,1.79866109]
[1766612963059,0.67,123.01,122.99,2.51866109]
[1766612966353,11.10767296,123.02,122.99,2.51866109]
[1766612967257,10.43767296,123.02,122.99,2.51866109]
[1766612967446,0.67,123.01,122.99,2.51866109]
[1766612979069,8.79948868,123.01,122.99,2.51866109]
[1766612979275,8.79948868,123.01,122.98,2.49866109]
[1766612979461,8.79948868,123.01,122.99,1.79866109]
[1766612983477,0.72,123.0,122.96,2.49866109]
[1766612983690,8.13176279,123.0,122.96,2.49866109]
[1766612983982,0.72,122.99,122.96,2.49866109]
[1766612984176,0.72,122.99,122.96,0.7]
[1766612984383,0.72,122.99,122.96,2.49866109]
[1766612987786,8.85076949,122.99,122.96,0.7]
[1766612987985,8.85076949,122.99,122.96,2.49866109]
[1766612990884,0.72,122.99,122.96,2.49866109]
[1766612993089,0.72,122.99,122.96,0.7]
[1766612993294,0.72,122.99,122.96,2.49866109]
[1766612994593,0.72,122.99,122.96,0.7]
[1766612995392,0.72,122.99,122.96,2.49866109]
[1766612995578,0.72,122.99,122.97,0.7]
[1766612996388,22.96971132,123.01,122.97,0.7]
[1766612996566,0.72,123.0,122.97,0.7]
[1766613000399,0.72,123.0,122.97,2.49866109]
[1766613003600,0.72,123.0,122.97,1.79866109]
[1766613003899,24.41108263,123.01,122.98,0.7]
[1766613004194,0.72,123.01,122.98,0.7]
[1766613008101,0.72,123.01,122.98,2.49866109]
[1766613008304,0.72,123.01,122.99,0.69]
[1766613009399,0.72,123.01,122.99,2.48866109]
[1766613014604,0.72,123.01,123.0,1.79866109]
[1766613017038,0.65,123.03,123.01,0.69]
[1766613017203,0.65,123.03,123.01,2.48866109]
[1766613018026,0.65,123.03,123.01,3.49862512]
[1766613019534,0.65,123.03,123.01,2.80862512]
[1766613022426,15.49,123.05,123.02,3.49862512]
[1766613030323,23.61683043,123.05,123.02,3.49862512]
[1766613031814,8.77683043,123.05,123.02,3.49862512]
[1766613033552,8.77683043,123.05,123.02,0.69]
[1766613034145,8.77683043,123.05,123.02,3.49862512]
[1766613039741,8.77683043,123.05,123.02,2.80862512]
[1766613039926,8.77683043,123.05,123.03,0.72]
[1766613048553,8.77683043,123.05,123.02,2.80862512]
[1766613048760,8.77683043,123.05,123.02,3.52862512]
[1766613049663,8.77683043,123.05,123.02,0.72]
[1766613050558,8.77683043,123.05,123.02,3.52862512]
[1766613050854,8.77683043,123.05,123.02,0.72]
[1766613051059,8.77683043,123.05,123.02,3.52862512]
[1766613053270,0.68,123.04,123.0,0.72]
[1766613053464,0.68,123.04,123.01,0.72]
[1766613055174,0.68,123.04,123.01,3.52862512]
[1766613056554,8.80765522,123.04,123.01,3.52862512]
[1766613056756,8.80765522,123.04,123.02,0.72]
[1766613057178,8.80765522,123.04,123.01,3.52862512]
[1766613067685,8.80765522,123.04,123.01,0.72]
[1766613068986,8.80765522,123.04,123.01,3.52862512]
[1766613069968,8.80765522,123.04,123.01,0.72]
[1766613082497,0.66,123.03,122.99,2.47752565]
[1766613083097,0.66,123.03,122.99,1.79752565]
[1766613083300,0.66,123.03,123.0,0.68]
[1766613083876,8.13090258,123.03,123.0,0.68]
[1766613084100,0.66,123.02,123.0,0.68]
[1766613088988,0.66,123.02,122.99,2.47752565]
[1766613089392,0.66,123.02,122.99,0.68]
[1766613092202,0.66,123.02,122.99,2.47752565]
[1766613093723,0.66,123.02,123.0,0.68]
[1766613094523,0.66,123.02,122.99,2.47752565]
[1766613094707,0.66,123.02,122.99,0.68]
[1766613095222,0.66,123.02,122.99,2.47752565]
[1766613096918,0.66,123.01,122.98,2.47752565]
[1766613097804,0.66,123.01,122.98,0.68]
[1766613098122,0.66,123.01,122.98,2.47752565]
[1766613098920,0.66,123.01,122.98,10.6088017]
[1766613099107,0.66,123.01,122.99,0.68]
[1766613100826,0.66,123.01,122.99,2.47752565]
[1766613101006,22.96837819,123.03,122.99,2.47752565]
[1766613101206,0.65,123.02,122.99,2.47752565]
[1766613105335,0.65,123.01,122.98,2.47752565]
[1766613107830,0.65,123.01,122.99,0.68]
[1766613108135,0.65,123.01,122.98,2.47752565]
[1766613108933,0.65,123.0,122.95,10.43767296]
[1766613109140,0.65,123.0,122.96,2.47752565]
[1766613109716,0.65,122.99,122.96,2.47752565]
[1766613110062,0.65,122.99,122.97,2.47752565]
[1766613110735,8.1302411,123.0,122.98,0.68]
[1766613111524,16.91294717,123.0,122.98,0.68]
[1766613112335,16.91294717,123.0,122.97,1.79752565]
[1766613112533,16.26294717,123.0,122.97,1.79752565]
[1766613112839,0.65,122.99,122.96,2.47752565]
[1766613114012,8.13270607,123.0,122.98,0.68]
[1766613114212,0.65,123.0,122.98,0.68]
[1766613114412,0.65,123.0,122.97,2.47752565]
[1766613114821,0.65,123.0,122.98,0.68]
[1766613115142,31.75200265,123.01,122.98,0.68]
[1766613116342,31.10200265,123.01,122.98,0.68]
[1766613116534,0.65,123.0,122.97,1.79752565]
[1766613116736,0.65,123.0,122.97,2.47752565]
[1766613117240,31.10200265,123.01,122.97,1.79752565]
[1766613117564,0.65,123.0,122.97,2.47752565]
[1766613120037,23.61943444,123.01,122.98,0.68]
[1766613120439,0.65,123.0,122.98,0.68]
[1766613120746,0.65,123.0,122.98,2.47752565]
[1766613120944,15.49,123.01,122.98,2.47752565]
[1766613121148,8.12907308,123.02,122.99,0.68]
[1766613121452,20.9830684,123.02,122.99,2.47752565]
[1766613121655,0.65,123.01,122.99,2.47752565]
[1766613122331,126.86827706,123.03,123.0,0.68]
[1766613122629,22.96827706,123.03,123.0,0.68]
[1766613124351,0.65,123.02,123.0,0.68]
[1766613124552,23.61827706,123.03,123.0,0.68]
[1766613125075,0.65,123.02,123.0,0.68]
[1766613125444,0.65,123.02,122.99,2.47752565]
[1766613126840,0.65,123.02,122.99,0.68]
[1766613127043,0.65,123.02,122.99,2.47752565]
[1766613128332,0.65,123.02,123.0,0.7]
[1766613131954,8.1287908,123.02,122.98,16.26287867]
[1766613132161,8.8187908,123.02,122.99,2.49752565]
[1766613133060,8.8187908,123.02,122.98,16.26287867]
[1766613133061,0.69,123.01,122.98,2.49752565]
[1766613133561,0.69,123.01,122.99,0.7]
[1766613136068,0.69,123.01,122.98,0.7]
[1766613136358,0.69,123.01,122.98,2.49752565]
[1766613136858,0.69,123.01,122.99,0.7]
[1766613141255,8.1287908,123.02,122.99,0.7]
[1766613141457,8.8187908,123.02,122.99,0.7]
[1766613141649,8.8187908,123.02,122.99,3.5097122]
[1766613142359,22.9683707,123.03,123.0,3.5097122]
[1766613142558,0.69,123.02,123.0,0.7]
[1766613145660,8.81922221,123.02,122.98,8.1312464]
[1766613145966,0.69,123.01,122.98,0.7]
[1766613152969,8.819468,123.01,122.98,0.7]
[1766613153274,0.69,123.0,122.96,0.7]
[1766613154278,0.69,123.0,122.96,8.83266776]
[1766613155051,8.13010745,123.0,122.96,8.83266776]
[1766613155345,0.69,122.99,122.96,8.83266776]
[1766613157570,0.69,122.99,122.96,11.64237996]
[1766613159575,0.69,122.99,122.96,3.5097122]
[1766613162567,0.69,122.99,122.96,0.7]
[1766613163377,0.69,122.99,122.96,3.5097122]
[1766613163759,0.7,122.98,122.95,3.4897122]
[1766613164781,0.7,122.98,122.96,0.68]
[1766613164983,8.83079094,122.99,122.96,0.68]
[1766613172787,8.13079094,122.99,122.96,0.68]
[1766613172978,0.7,122.98,122.96,0.68]
[1766613176584,8.13079094,122.99,122.96,0.68]
[1766613176764,8.83079094,122.99,122.96,0.68]
[1766613177394,0.7,122.99,122.96,0.68]
[1766613178390,0.7,123.0,122.97,3.4897122]
[1766613179475,0.7,123.0,122.97,0.68]
[1766613195401,0.7,123.0,122.97,3.4897122]
[1766613197907,0.7,123.0,122.97,0.68]
[1766613198904,8.83008268,123.0,122.97,0.68]
[1766613201915,8.13008268,123.0,122.95,24.41108263]
[1766613202103,8.13008268,123.0,122.96,0.69]
[1766613202104,0.66,122.99,122.96,0.69]
[1766613204714,8.7913241,122.99,122.96,0.69]
[1766613212301,0.66,122.98,122.95,10.62202985]
[1766613212711,0.66,122.98,122.95,9.93202985]
[1766613212914,0.66,122.98,122.96,0.69]
[1766613215235,8.7913241,122.99,122.96,0.69]
[1766613215629,0.66,122.99,122.97,0.69]
[1766613215834,8.7901382,123.0,122.97,0.69]
[1766613217842,0.7,122.99,122.96,0.66]
[1766613240953,8.1301382,123.0,122.96,0.66]
[1766613241165,8.8301382,123.0,122.96,0.66]
[1766613242354,8.8301382,123.0,122.96,2.45870151]
[1766613242535,8.8301382,123.0,122.97,0.66]
[1766613244158,8.8301382,123.0,122.97,8.13196978]
[1766613244159,0.7,123.0,122.97,8.13196978]
[1766613244346,0.7,123.01,122.98,0.66]
[1766613244742,0.7,123.0,122.97,9.93067129]
[1766613244946,0.7,123.0,122.97,2.45870151]
[1766613246759,0.7,123.0,122.97,0.66]
[1766613251463,0.7,123.0,122.97,2.45870151]
[1766613256666,8.1294324,123.01,122.98,0.68]
[1766613256871,8.8194324,123.01,122.98,0.68]
[1766613258074,0.69,123.0,122.97,2.47870151]
[1766613258547,0.69,123.0,122.97,0.68]
[1766613260374,8.82009994,123.0,122.97,0.68]
[1766613261990,10.93986589,123.01,122.97,0.68]
[1766613262280,0.69,123.0,122.97,0.68]
[1766613264267,0.69,122.99,122.96,0.68]
[1766613264776,0.69,122.99,122.94,83.88174326]
[1766613264967,10.94072209,123.0,122.95,0.68]
[1766613265159,0.69,122.99,122.95,0.68]
[1766613266558,8.82085106,122.99,122.96,0.68]
[1766613270082,0.69,122.99,122.96,0.68]
[1766613272885,0.69,122.99,122.96,3.49044552]
[1766613284992,0.69,122.99,122.96,0.68]
[1766613285467,0.69,122.99,122.96,3.49044552]
[1766613292504,0.69,122.99,122.96,0.68]
[1766613295608,0.69,122.99,122.96,3.49044552]
[1766613301301,0.69,122.99,122.96,0.68]
[1766613311745,0.69,122.99,122.96,8.81270964]
[1766613328165,0.69,122.99,122.96,0.68]
[1766613338277,0.69,122.99,122.96,2.47894155]
[1766613340356,0.69,122.99,122.96,10.60933918]
[1766613341569,0.69,122.99,122.96,2.47894155]
[1766613345171,0.69,122.99,122.96,9.93158125]
[1766613345366,0.69,122.99,122.97,0.7]
[1766613358298,0.69,122.99,122.96,25.11108263]
[1766613358592,0.69,122.99,122.96,0.7]
[1766613359296,8.82092028,122.99,122.96,0.7]
[1766613359997,0.68,122.99,122.96,0.7]
[1766613375021,0.68,122.99,122.96,2.49894155]
[1766613383026,0.68,122.99,122.96,24.62176191]
[1766613383926,0.68,122.99,122.96,25.63356503]
[1766613396403,0.68,122.99,122.96,22.82282036]
[1766613398430,0.68,122.99,122.96,25.63356503]
[1766613399531,0.68,122.99,122.96,22.82282036]
[1766613408927,0.68,122.99,122.96,22.12282036]
[1766613409128,0.68,122.99,122.96,0.7]
[1766613409333,2.81074467,123.02,122.99,0.7]
[1766613409334,0.68,123.02,122.99,0.7]
[1766613409533,33.21809302,123.02,122.99,3.51074467]
[1766613410034,8.80899657,123.02,122.99,27.91984112]
[1766613412132,16.35333875,123.03,123.0,3.51074467]
[1766613412339,0.68,123.03,123.0,3.51074467]
[1766613412523,0.68,123.03,123.0,19.86408342]
[1766613420443,8.80707726,123.05,123.02,3.51074467]
[1766613421345,8.80707726,123.05,123.02,27.91388454]
[1766613422345,8.80707726,123.05,123.02,3.51074467]
[1766613422522,8.80707726,123.05,123.02,27.91388454]
[1766613425447,0.68,123.04,123.02,24.40313987]
[1766613425638,0.68,123.02,122.98,3.51074467]
[1766613426268,0.68,123.02,122.98,0.7]
[1766613426566,24.40909645,123.01,122.98,3.51074467]
[1766613427060,24.40909645,123.01,122.99,0.7]
[1766613428173,25.05909645,123.01,122.99,0.7]
[1766613428764,8.13172708,123.0,122.99,0.7]
[1766613431550,8.78172708,123.0,122.97,3.53074467]
[1766613431856,0.65,123.0,122.97,3.53074467]
[1766613432240,8.78172708,122.99,122.97,3.53074467]
[1766613432654,0.65,123.0,122.97,3.53074467]
[1766613432865,9.43172708,123.0,122.97,3.53074467]
[1766613434764,9.43172708,123.0,122.97,2.81074467]
[1766613434940,9.43172708,123.0,122.98,0.72]
[1766613437065,8.78172708,123.0,122.98,0.72]
[1766613439267,8.78172708,123.0,122.98,3.53074467]
[1766613441068,8.78172708,123.0,122.98,0.72]
[1766613442668,0.65,123.01,122.98,0.72]